[Event "Titled Tuesday Blitz April 26 Early 2022"]
[White "Nakamura, Hikaru"]
[Black "Danilenko, Dmitriy"]
[WhiteFideId "2016192"]
[BlackFideId "14120844"]
[WhiteElo "2850"]
[BlackElo "2606"]
[Result "1-0"]
[Round "04"]
[TimeControl "180+1"]
[Date "2022.04.26"]
[WhiteClock "0:00:15"]
[BlackClock "0:00:04"]

1. Nf3 {[%clk 0:03:00]}  f5 {[%clk 0:02:59]} 2. d3 {[%clk 0:03:00]}  d6 {[%clk 0:02:58]} 3. e4 {[%clk 0:03:00]}  e5 {[%clk 0:02:57]} 4. Nc3 {[%clk 0:02:55]}  c5 {[%clk 0:02:45]} 5. b4 {[%clk 0:02:49]}  cxb4 {[%clk 0:02:43]} 6. Nd5 {[%clk 0:02:49]}  Nf6 {[%clk 0:02:42]} 7. Bg5 {[%clk 0:02:34]}  Be7 {[%clk 0:02:38]} 8. Bxf6 {[%clk 0:02:33]}  Bxf6 {[%clk 0:02:38]} 9. Nxb4 {[%clk 0:02:34]}  Nc6 {[%clk 0:02:34]} 10. Nd5 {[%clk 0:02:34]}  Be6 {[%clk 0:02:32]} 11. c4 {[%clk 0:02:28]}  Qa5+ {[%clk 0:02:02]} 12. Qd2 {[%clk 0:02:27]}  Qxd2+ {[%clk 0:02:00]} 13. Kxd2 {[%clk 0:02:28]}  Bd8 {[%clk 0:02:00]} 14. h3 {[%clk 0:02:15]}  O-O {[%clk 0:01:49]} 15. Be2 {[%clk 0:02:10]}  Rc8 {[%clk 0:01:41]} 16. Rhb1 {[%clk 0:02:04]}  b6 {[%clk 0:01:40]} 17. Ke1 {[%clk 0:01:59]}  Na5 {[%clk 0:01:29]} 18. exf5 {[%clk 0:01:53]}  Bxf5 {[%clk 0:01:14]} 19. Nd2 {[%clk 0:01:51]}  Bg5 {[%clk 0:01:11]} 20. Rd1 {[%clk 0:01:45]}  Be6 {[%clk 0:01:08]} 21. Bg4 {[%clk 0:01:37]}  Bxd2+ {[%clk 0:01:05]} 22. Rxd2 {[%clk 0:01:36]}  Bxg4 {[%clk 0:01:01]} 23. hxg4 {[%clk 0:01:37]}  Nc6 {[%clk 0:01:01]} 24. a4 {[%clk 0:01:34]}  Kf7 {[%clk 0:00:58]} 25. f3 {[%clk 0:01:34]}  Ke6 {[%clk 0:00:52]} 26. Kf2 {[%clk 0:01:33]}  h6 {[%clk 0:00:47]} 27. Kg3 {[%clk 0:01:31]}  Ne7 {[%clk 0:00:42]} 28. Nxe7 {[%clk 0:01:25]}  Kxe7 {[%clk 0:00:43]} 29. a5 {[%clk 0:01:26]}  Rc7 {[%clk 0:00:32]} 30. axb6 {[%clk 0:01:25]}  axb6 {[%clk 0:00:33]} 31. Rb2 {[%clk 0:01:25]}  Rb8 {[%clk 0:00:33]} 32. Ra6 {[%clk 0:01:25]}  Rcb7 {[%clk 0:00:32]} 33. Rb5 {[%clk 0:01:25]}  Kd7 {[%clk 0:00:32]} 34. Kh4 {[%clk 0:01:25]}  Kc6 {[%clk 0:00:32]} 35. Kh5 {[%clk 0:01:21]}  Rf8 {[%clk 0:00:31]} 36. Ra1 {[%clk 0:01:20]}  Rf4 {[%clk 0:00:29]} 37. Rb3 {[%clk 0:01:17]}  Rd4 {[%clk 0:00:26]} 38. Ra8 {[%clk 0:01:10]}  Rf4 {[%clk 0:00:20]} 39. Rc8+ {[%clk 0:01:02]}  Kd7 {[%clk 0:00:19]} 40. Rg8 {[%clk 0:01:02]}  Kc6 {[%clk 0:00:19]} 41. Rd8 {[%clk 0:00:55]}  Rf6 {[%clk 0:00:19]} 42. Rb5 {[%clk 0:00:53]}  Ra7 {[%clk 0:00:11]} 43. Kh4 {[%clk 0:00:44]}  Ra2 {[%clk 0:00:07]} 44. Kg3 {[%clk 0:00:44]}  Ra3 {[%clk 0:00:08]} 45. Rb8 {[%clk 0:00:44]}  Ra6 {[%clk 0:00:07]} 46. Rb1 {[%clk 0:00:41]}  Rf7 {[%clk 0:00:06]} 47. Rd1 {[%clk 0:00:35]}  Rb7 {[%clk 0:00:06]} 48. Rc8+ {[%clk 0:00:33]}  Rc7 {[%clk 0:00:06]} 49. Rg8 {[%clk 0:00:32]}  Ra4 {[%clk 0:00:06]} 50. Kh4 {[%clk 0:00:31]}  b5 {[%clk 0:00:05]} 51. cxb5+ {[%clk 0:00:30]}  Kxb5 {[%clk 0:00:06]} 52. Kh5 {[%clk 0:00:31]}  Rd4 {[%clk 0:00:06]} 53. Rb1+ {[%clk 0:00:29]}  Kc5 {[%clk 0:00:06]} 54. Rc1+ {[%clk 0:00:29]}  Kb6 {[%clk 0:00:06]} 55. Rxc7 {[%clk 0:00:29]}  Kxc7 {[%clk 0:00:06]} 56. Rxg7+ {[%clk 0:00:30]}  Kc6 {[%clk 0:00:07]} 57. Kxh6 {[%clk 0:00:29]}  Rxd3 {[%clk 0:00:07]} 58. g5 {[%clk 0:00:29]}  Rd2 {[%clk 0:00:08]} 59. g6 {[%clk 0:00:29]}  Rxg2 {[%clk 0:00:08]} 60. Re7 {[%clk 0:00:28]}  Kd5 {[%clk 0:00:02]} 61. g7 {[%clk 0:00:28]}  Rh2+ {[%clk 0:00:02]} 62. Kg6 {[%clk 0:00:28]}  Rg2+ {[%clk 0:00:03]} 63. Kf7 {[%clk 0:00:29]}  Kd4 {[%clk 0:00:03]} 64. Ke6 {[%clk 0:00:23]}  d5 {[%clk 0:00:02]} 65. Rd7 {[%clk 0:00:19]}  Rg6+ {[%clk 0:00:03]} 66. Kf7 {[%clk 0:00:14]}  Rg1 {[%clk 0:00:03]} 67. g8=Q {[%clk 0:00:13]}  Rxg8 {[%clk 0:00:03]} 68. Kxg8 {[%clk 0:00:13]}  e4 {[%clk 0:00:04]} 69. f4 {[%clk 0:00:14]}  e3 {[%clk 0:00:04]} 70. Re7 {[%clk 0:00:13]}  Kd3 {[%clk 0:00:04]} 71. f5 {[%clk 0:00:14]}  d4 {[%clk 0:00:05]} 72. f6 {[%clk 0:00:14]}  e2 {[%clk 0:00:04]} 73. f7 {[%clk 0:00:15]}  Kd2 {[%clk 0:00:04]} 74. f8=Q {[%clk 0:00:15]}  d3 {[%clk 0:00:04]} 75. Qf2 {[%clk 0:00:15]} 1-0


[Site "https://www.chess.com"]

[Event "Titled Tuesday Blitz April 26 Early 2022"]
[White "Nurmanova, Alua"]
[Black "Okike, David"]
[WhiteFideId "13729390"]
[BlackFideId "8500134"]
[WhiteElo "1905"]
[BlackElo "2232"]
[Result "0-1"]
[Round "04"]
[TimeControl "180+1"]
[Date "2022.04.26"]
[WhiteClock "0:00:00"]
[BlackClock "0:00:45"]

1. e4 {[%clk 0:03:00]}  c5 {[%clk 0:02:59]} 2. Nf3 {[%clk 0:03:00]}  Nc6 {[%clk 0:02:59]} 3. d4 {[%clk 0:03:00]}  cxd4 {[%clk 0:02:59]} 4. Nxd4 {[%clk 0:03:01]}  Nf6 {[%clk 0:02:59]} 5. Nc3 {[%clk 0:02:59]}  d6 {[%clk 0:02:59]} 6. Bg5 {[%clk 0:02:50]}  a6 {[%clk 0:02:58]} 7. Qd2 {[%clk 0:02:49]}  e6 {[%clk 0:02:57]} 8. O-O-O {[%clk 0:02:46]}  Bd7 {[%clk 0:02:57]} 9. f4 {[%clk 0:02:44]}  h6 {[%clk 0:02:56]} 10. Bxf6 {[%clk 0:02:20]}  Qxf6 {[%clk 0:02:57]} 11. Nf3 {[%clk 0:02:19]}  Qd8 {[%clk 0:02:57]} 12. Bd3 {[%clk 0:02:02]}  Be7 {[%clk 0:02:54]} 13. e5 {[%clk 0:01:57]}  d5 {[%clk 0:02:48]} 14. Ne2 {[%clk 0:01:55]}  Qc7 {[%clk 0:02:47]} 15. Kb1 {[%clk 0:01:51]}  O-O-O {[%clk 0:02:46]} 16. Ned4 {[%clk 0:01:50]}  Kb8 {[%clk 0:02:46]} 17. Rhe1 {[%clk 0:01:47]}  Na5 {[%clk 0:02:37]} 18. c3 {[%clk 0:01:20]}  Nc4 {[%clk 0:02:35]} 19. Qc2 {[%clk 0:01:19]}  g6 {[%clk 0:02:34]} 20. g4 {[%clk 0:01:02]}  h5 {[%clk 0:02:31]} 21. h3 {[%clk 0:00:56]}  hxg4 {[%clk 0:02:30]} 22. hxg4 {[%clk 0:00:57]}  Rc8 {[%clk 0:02:28]} 23. f5 {[%clk 0:00:55]}  gxf5 {[%clk 0:02:27]} 24. gxf5 {[%clk 0:00:55]}  Qb6 {[%clk 0:02:27]} 25. Ka1 {[%clk 0:00:53]}  Bc5 {[%clk 0:02:25]} 26. fxe6 {[%clk 0:00:48]}  fxe6 {[%clk 0:02:24]} 27. Rh1 {[%clk 0:00:46]}  Rhf8 {[%clk 0:02:07]} 28. Qe2 {[%clk 0:00:43]}  Rf7 {[%clk 0:01:54]} 29. Rh6 {[%clk 0:00:39]}  Rcf8 {[%clk 0:01:49]} 30. Bxc4 {[%clk 0:00:31]}  Bxd4 {[%clk 0:01:44]} 31. Nxd4 {[%clk 0:00:28]}  Rf2 {[%clk 0:01:44]} 32. Qxf2 {[%clk 0:00:21]}  Rxf2 {[%clk 0:01:42]} 33. Bb3 {[%clk 0:00:22]}  Bc8 {[%clk 0:01:33]} 34. Rf6 {[%clk 0:00:20]}  Rh2 {[%clk 0:01:25]} 35. Rf8 {[%clk 0:00:20]}  Qc7 {[%clk 0:01:21]} 36. Re1 {[%clk 0:00:17]}  Qe7 {[%clk 0:01:20]} 37. Rg8 {[%clk 0:00:15]}  Qf7 {[%clk 0:01:18]} 38. Rgg1 {[%clk 0:00:10]}  Qf2 {[%clk 0:01:17]} 39. Bc2 {[%clk 0:00:09]}  Rh5 {[%clk 0:01:09]} 40. Rgf1 {[%clk 0:00:08]}  Qg3 {[%clk 0:01:08]} 41. Nf3 {[%clk 0:00:06]}  Qg2 {[%clk 0:01:01]} 42. Kb1 {[%clk 0:00:05]}  b5 {[%clk 0:01:00]} 43. a3 {[%clk 0:00:04]}  a5 {[%clk 0:00:59]} 44. Nd4 {[%clk 0:00:04]}  b4 {[%clk 0:00:56]} 45. axb4 {[%clk 0:00:05]}  axb4 {[%clk 0:00:55]} 46. Nc6+ {[%clk 0:00:04]}  Kc7 {[%clk 0:00:56]} 47. Nxb4 {[%clk 0:00:05]}  Qg3 {[%clk 0:00:50]} 48. Rf7+ {[%clk 0:00:03]}  Kb6 {[%clk 0:00:49]} 49. Rf8 {[%clk 0:00:01]}  Bd7 {[%clk 0:00:48]} 50. Ref1 {[%clk 0:00:01]}  Qxe5 {[%clk 0:00:47]} 51. R1f7 {[%clk 0:00:00]}  Rh1+ {[%clk 0:00:45]} 0-1


[Site "https://www.chess.com"]

[Event "Titled Tuesday Blitz April 26 Early 2022"]
[White "Oganian, Miran"]
[Black "Gunduz, Umut Erdem"]
[WhiteFideId "4122488"]
[BlackFideId "6381383"]
[WhiteElo "2823"]
[BlackElo "2547"]
[Result "1-0"]
[Round "04"]
[TimeControl "180+1"]
[Date "2022.04.26"]
[WhiteClock "0:00:15"]
[BlackClock "0:00:16"]

1. e4 {[%clk 0:02:59]}  e6 {[%clk 0:02:57]} 2. d4 {[%clk 0:02:59]}  d5 {[%clk 0:02:57]} 3. Nc3 {[%clk 0:03:00]}  dxe4 {[%clk 0:02:50]} 4. Nxe4 {[%clk 0:03:00]}  Bd7 {[%clk 0:02:51]} 5. Nf3 {[%clk 0:03:00]}  Bc6 {[%clk 0:02:48]} 6. Bd3 {[%clk 0:03:00]}  Nd7 {[%clk 0:02:48]} 7. O-O {[%clk 0:02:59]}  Ngf6 {[%clk 0:02:49]} 8. Qe2 {[%clk 0:03:00]}  Nxe4 {[%clk 0:02:46]} 9. Bxe4 {[%clk 0:03:00]}  Bxe4 {[%clk 0:02:46]} 10. Qxe4 {[%clk 0:03:01]}  c6 {[%clk 0:02:47]} 11. Bg5 {[%clk 0:03:00]}  Be7 {[%clk 0:02:47]} 12. Bf4 {[%clk 0:02:53]}  O-O {[%clk 0:02:45]} 13. c4 {[%clk 0:02:53]}  Nf6 {[%clk 0:02:43]} 14. Qe2 {[%clk 0:02:50]}  Qa5 {[%clk 0:02:41]} 15. Be5 {[%clk 0:02:41]}  Rfd8 {[%clk 0:02:37]} 16. Rfe1 {[%clk 0:02:38]}  c5 {[%clk 0:02:36]} 17. d5 {[%clk 0:02:36]}  exd5 {[%clk 0:02:17]} 18. Bc3 {[%clk 0:02:35]}  Qb6 {[%clk 0:02:18]} 19. Qxe7 {[%clk 0:02:21]}  Re8 {[%clk 0:02:18]} 20. Bxf6 {[%clk 0:02:22]}  Rxe7 {[%clk 0:02:18]} 21. Bxe7 {[%clk 0:02:23]}  dxc4 {[%clk 0:02:18]} 22. Re2 {[%clk 0:02:13]}  Qc7 {[%clk 0:02:04]} 23. Rae1 {[%clk 0:02:10]}  h6 {[%clk 0:02:01]} 24. Bh4 {[%clk 0:02:04]}  b5 {[%clk 0:01:52]} 25. Bg3 {[%clk 0:02:02]}  Qa5 {[%clk 0:01:51]} 26. a3 {[%clk 0:01:40]}  c3 {[%clk 0:01:50]} 27. Be5 {[%clk 0:01:34]}  cxb2 {[%clk 0:01:46]} 28. Bxb2 {[%clk 0:01:35]}  c4 {[%clk 0:01:44]} 29. Ne5 {[%clk 0:01:13]}  Re8 {[%clk 0:01:39]} 30. Kf1 {[%clk 0:00:50]}  Re6 {[%clk 0:01:25]} 31. Re3 {[%clk 0:00:46]}  Qa4 {[%clk 0:01:12]} 32. f4 {[%clk 0:00:35]}  a5 {[%clk 0:01:06]} 33. f5 {[%clk 0:00:35]}  Rf6 {[%clk 0:00:59]} 34. Nd7 {[%clk 0:00:34]}  Rxf5+ {[%clk 0:00:57]} 35. Kg1 {[%clk 0:00:34]}  h5 {[%clk 0:00:47]} 36. Rg3 {[%clk 0:00:31]}  Kh7 {[%clk 0:00:24]} 37. Rxg7+ {[%clk 0:00:29]}  Kh6 {[%clk 0:00:24]} 38. Rg3 {[%clk 0:00:24]}  c3 {[%clk 0:00:20]} 39. Bc1+ {[%clk 0:00:22]}  Rf4 {[%clk 0:00:17]} 40. Rf1 {[%clk 0:00:18]}  Qd4+ {[%clk 0:00:16]} 41. Be3 {[%clk 0:00:15]}  Qxe3+ {[%clk 0:00:15]} 42. Rxe3 {[%clk 0:00:15]}  Rd4 {[%clk 0:00:15]} 43. Rxc3 {[%clk 0:00:14]}  Rxd7 {[%clk 0:00:15]} 44. Rc5 {[%clk 0:00:14]}  Rb7 {[%clk 0:00:16]} 45. Rb1 {[%clk 0:00:14]}  b4 {[%clk 0:00:16]} 46. Rxa5 {[%clk 0:00:15]} 1-0


[Site "https://www.chess.com"]

[Event "Titled Tuesday Blitz April 26 Early 2022"]
[White "Omariev, Maksim"]
[Black "Van den Dikkenberg, Erik"]
[WhiteFideId "4193423"]
[BlackFideId "1005880"]
[WhiteElo "2490"]
[BlackElo "2118"]
[Result "1-0"]
[Round "04"]
[TimeControl "180+1"]
[Date "2022.04.26"]
[WhiteClock "0:00:22"]
[BlackClock "0:00:06"]

1. g4 {[%clk 0:03:00]}  d5 {[%clk 0:02:57]} 2. Bg2 {[%clk 0:03:01]}  e5 {[%clk 0:02:57]} 3. d4 {[%clk 0:02:59]}  e4 {[%clk 0:02:54]} 4. h3 {[%clk 0:02:58]}  Nc6 {[%clk 0:02:52]} 5. c4 {[%clk 0:02:58]}  Bb4+ {[%clk 0:02:49]} 6. Nc3 {[%clk 0:02:57]}  Nge7 {[%clk 0:02:48]} 7. e3 {[%clk 0:02:47]}  h5 {[%clk 0:02:42]} 8. gxh5 {[%clk 0:02:44]}  Bf5 {[%clk 0:02:41]} 9. Bd2 {[%clk 0:02:37]}  Bxc3 {[%clk 0:02:41]} 10. Bxc3 {[%clk 0:02:34]}  dxc4 {[%clk 0:02:41]} 11. d5 {[%clk 0:02:29]}  Nxd5 {[%clk 0:02:34]} 12. Bxg7 {[%clk 0:02:29]}  Rg8 {[%clk 0:02:32]} 13. h6 {[%clk 0:02:28]}  Ncb4 {[%clk 0:02:17]} 14. Ne2 {[%clk 0:01:46]}  Nd3+ {[%clk 0:02:15]} 15. Kf1 {[%clk 0:01:46]}  Qh4 {[%clk 0:02:09]} 16. Ng3 {[%clk 0:01:35]}  Nxe3+ {[%clk 0:01:50]} 17. fxe3 {[%clk 0:01:35]}  Qxg3 {[%clk 0:01:50]} 18. Qe2 {[%clk 0:01:31]}  O-O-O {[%clk 0:01:39]} 19. Kg1 {[%clk 0:01:30]}  Rd6 {[%clk 0:00:45]} 20. Rf1 {[%clk 0:01:29]}  Bh7 {[%clk 0:00:29]} 21. Rxf7 {[%clk 0:01:17]}  Rg6 {[%clk 0:00:22]} 22. Rh2 {[%clk 0:01:10]}  Ne1 {[%clk 0:00:19]} 23. Qf2 {[%clk 0:00:56]}  Qxf2+ {[%clk 0:00:14]} 24. Kxf2 {[%clk 0:00:55]}  Nd3+ {[%clk 0:00:14]} 25. Ke2 {[%clk 0:00:54]}  Rb6 {[%clk 0:00:12]} 26. h4 {[%clk 0:00:33]}  Bg6 {[%clk 0:00:12]} 27. Bh3+ {[%clk 0:00:32]}  Kb8 {[%clk 0:00:11]} 28. Re7 {[%clk 0:00:24]}  Bh5+ {[%clk 0:00:06]} 29. Kd2 {[%clk 0:00:22]}  Rxg7 {[%clk 0:00:05]} 30. hxg7 {[%clk 0:00:22]}  Rxb2+ {[%clk 0:00:06]} 31. Kc3 {[%clk 0:00:22]} 1-0


[Site "https://www.chess.com"]

[Event "Titled Tuesday Blitz April 26 Early 2022"]
[White "Omelja, Artem"]
[Black "Kotepalli, Sai Nirupama"]
[WhiteFideId "14119846"]
[BlackFideId "5039444"]
[WhiteElo "2382"]
[BlackElo "2386"]
[Result "1-0"]
[Round "04"]
[TimeControl "180+1"]
[Date "2022.04.26"]
[WhiteClock "0:00:08"]
[BlackClock "0:00:13"]

1. d4 {[%clk 0:03:00]}  g6 {[%clk 0:02:59]} 2. c4 {[%clk 0:02:59]}  Bg7 {[%clk 0:02:58]} 3. e4 {[%clk 0:02:52]}  d6 {[%clk 0:02:56]} 4. Nc3 {[%clk 0:02:50]}  Nf6 {[%clk 0:02:53]} 5. f3 {[%clk 0:02:49]}  O-O {[%clk 0:02:52]} 6. Be3 {[%clk 0:02:49]}  Nfd7 {[%clk 0:02:46]} 7. Nge2 {[%clk 0:02:49]}  a6 {[%clk 0:02:43]} 8. Qd2 {[%clk 0:02:44]}  c6 {[%clk 0:02:36]} 9. h4 {[%clk 0:02:38]}  h5 {[%clk 0:02:36]} 10. g4 {[%clk 0:02:37]}  Nf6 {[%clk 0:02:32]} 11. gxh5 {[%clk 0:02:36]}  Nxh5 {[%clk 0:02:31]} 12. O-O-O {[%clk 0:02:36]}  Nd7 {[%clk 0:02:28]} 13. Nf4 {[%clk 0:02:33]}  Nxf4 {[%clk 0:02:27]} 14. Bxf4 {[%clk 0:02:32]}  e5 {[%clk 0:02:27]} 15. dxe5 {[%clk 0:02:24]}  dxe5 {[%clk 0:02:28]} 16. Bg5 {[%clk 0:02:23]}  f6 {[%clk 0:02:12]} 17. Be3 {[%clk 0:02:19]}  Qe7 {[%clk 0:02:09]} 18. h5 {[%clk 0:01:46]}  g5 {[%clk 0:01:59]} 19. h6 {[%clk 0:01:46]}  Bh8 {[%clk 0:01:58]} 20. h7+ {[%clk 0:01:46]}  Kf7 {[%clk 0:01:56]} 21. c5 {[%clk 0:01:39]}  Ke8 {[%clk 0:01:47]} 22. Bc4 {[%clk 0:01:36]}  Rb8 {[%clk 0:01:36]} 23. Na4 {[%clk 0:01:22]}  Ra8 {[%clk 0:01:28]} 24. Kb1 {[%clk 0:01:22]}  Rb8 {[%clk 0:01:25]} 25. Qh2 {[%clk 0:01:05]}  Kd8 {[%clk 0:01:21]} 26. Rd6 {[%clk 0:00:56]}  Kc7 {[%clk 0:01:09]} 27. Rhd1 {[%clk 0:00:46]}  Ra8 {[%clk 0:01:07]} 28. Re6 {[%clk 0:00:30]}  Qg7 {[%clk 0:01:01]} 29. Red6 {[%clk 0:00:29]}  Re8 {[%clk 0:00:55]} 30. Be6 {[%clk 0:00:20]}  Re7 {[%clk 0:00:43]} 31. Bxd7 {[%clk 0:00:19]}  Bxd7 {[%clk 0:00:41]} 32. Nb6 {[%clk 0:00:15]}  Rd8 {[%clk 0:00:41]} 33. R1d3 {[%clk 0:00:10]}  Qf7 {[%clk 0:00:29]} 34. Bd2 {[%clk 0:00:09]}  Kb8 {[%clk 0:00:19]} 35. Ba5 {[%clk 0:00:06]}  Qxh7 {[%clk 0:00:18]} 36. Qxh7 {[%clk 0:00:05]}  Rxh7 {[%clk 0:00:18]} 37. Nxd7+ {[%clk 0:00:05]}  Rdxd7 {[%clk 0:00:17]} 38. Rxd7 {[%clk 0:00:06]}  Rh1+ {[%clk 0:00:15]} 39. Rd1 {[%clk 0:00:07]}  Rh2 {[%clk 0:00:14]} 40. Rd8+ {[%clk 0:00:07]}  Ka7 {[%clk 0:00:13]} 41. Bb6# {[%clk 0:00:08]} 1-0


[Site "https://www.chess.com"]

[Event "Titled Tuesday Blitz April 26 Early 2022"]
[White "Onslow, Alfie"]
[Black "Saim, Mohamed Ilias"]
[WhiteFideId "436976"]
[BlackFideId "7900465"]
[WhiteElo "1884"]
[BlackElo "2006"]
[Result "1-0"]
[Round "04"]
[TimeControl "180+1"]
[Date "2022.04.26"]
[WhiteClock "0:02:24"]
[BlackClock "0:00:57"]

1. e4 {[%clk 0:03:00]}  c6 {[%clk 0:02:59]} 2. d4 {[%clk 0:03:00]}  d5 {[%clk 0:02:58]} 3. exd5 {[%clk 0:03:01]}  cxd5 {[%clk 0:02:58]} 4. Nf3 {[%clk 0:03:01]}  Nc6 {[%clk 0:02:53]} 5. Bb5 {[%clk 0:03:01]}  a6 {[%clk 0:02:50]} 6. Bxc6+ {[%clk 0:03:00]}  bxc6 {[%clk 0:02:51]} 7. Nc3 {[%clk 0:02:53]}  Bg4 {[%clk 0:02:47]} 8. h3 {[%clk 0:02:53]}  Bh5 {[%clk 0:02:46]} 9. g4 {[%clk 0:02:50]}  Bg6 {[%clk 0:02:45]} 10. Ne5 {[%clk 0:02:51]}  Qc7 {[%clk 0:02:41]} 11. Bf4 {[%clk 0:02:49]}  Qc8 {[%clk 0:02:30]} 12. h4 {[%clk 0:02:47]}  h5 {[%clk 0:02:21]} 13. Nxg6 {[%clk 0:02:45]}  fxg6 {[%clk 0:02:22]} 14. g5 {[%clk 0:02:44]}  e6 {[%clk 0:02:16]} 15. Qe2 {[%clk 0:02:40]}  Bb4 {[%clk 0:02:06]} 16. O-O-O {[%clk 0:02:35]}  Bxc3 {[%clk 0:02:05]} 17. bxc3 {[%clk 0:02:36]}  Qd7 {[%clk 0:01:59]} 18. Rhe1 {[%clk 0:02:32]}  Ne7 {[%clk 0:01:32]} 19. Qxe6 {[%clk 0:02:30]}  Qxe6 {[%clk 0:01:31]} 20. Rxe6 {[%clk 0:02:31]}  Kd7 {[%clk 0:01:29]} 21. Rd6+ {[%clk 0:02:28]}  Kc8 {[%clk 0:01:13]} 22. Re1 {[%clk 0:02:27]}  Rd8 {[%clk 0:00:59]} 23. Rxe7 {[%clk 0:02:23]}  Rxd6 {[%clk 0:00:57]} 24. Bxd6 {[%clk 0:02:24]} 1-0


[Site "https://www.chess.com"]

[Event "Titled Tuesday Blitz April 26 Early 2022"]
[White "Ovezdurdyyeva, Jemal"]
[Black "Hnydiuk, Aleksander"]
[WhiteFideId "14001888"]
[BlackFideId "1109057"]
[WhiteElo "1946"]
[BlackElo "2374"]
[Result "0-1"]
[Round "04"]
[TimeControl "180+1"]
[Date "2022.04.26"]
[WhiteClock "0:00:04"]
[BlackClock "0:00:06"]

1. e4 {[%clk 0:03:00]}  c5 {[%clk 0:02:58]} 2. Nf3 {[%clk 0:03:00]}  e6 {[%clk 0:02:58]} 3. d4 {[%clk 0:03:00]}  cxd4 {[%clk 0:02:59]} 4. Nxd4 {[%clk 0:03:00]}  Nc6 {[%clk 0:02:59]} 5. Nb5 {[%clk 0:02:58]}  d6 {[%clk 0:02:58]} 6. c4 {[%clk 0:02:58]}  Nf6 {[%clk 0:02:57]} 7. N1c3 {[%clk 0:02:55]}  a6 {[%clk 0:02:56]} 8. Nd4 {[%clk 0:02:51]}  Be7 {[%clk 0:02:54]} 9. Be3 {[%clk 0:02:49]}  O-O {[%clk 0:02:54]} 10. Be2 {[%clk 0:02:49]}  Bd7 {[%clk 0:02:46]} 11. O-O {[%clk 0:02:49]}  Rc8 {[%clk 0:02:47]} 12. Rc1 {[%clk 0:02:40]}  Nxd4 {[%clk 0:02:35]} 13. Bxd4 {[%clk 0:02:39]}  Bc6 {[%clk 0:02:36]} 14. Bd3 {[%clk 0:02:32]}  Nd7 {[%clk 0:02:30]} 15. Qh5 {[%clk 0:02:19]}  g6 {[%clk 0:02:05]} 16. Qh3 {[%clk 0:02:08]}  Bf6 {[%clk 0:02:02]} 17. Bxf6 {[%clk 0:02:06]}  Qxf6 {[%clk 0:02:03]} 18. b3 {[%clk 0:01:48]}  Nc5 {[%clk 0:01:50]} 19. Bb1 {[%clk 0:01:44]}  Qf4 {[%clk 0:01:46]} 20. Rfe1 {[%clk 0:01:23]}  b5 {[%clk 0:01:45]} 21. cxb5 {[%clk 0:00:57]}  axb5 {[%clk 0:01:46]} 22. Ne2 {[%clk 0:00:56]}  Qe5 {[%clk 0:01:34]} 23. f4 {[%clk 0:00:53]}  Qb2 {[%clk 0:01:27]} 24. e5 {[%clk 0:00:45]}  Ne4 {[%clk 0:00:44]} 25. Rxc6 {[%clk 0:00:28]}  Rxc6 {[%clk 0:00:45]} 26. Bxe4 {[%clk 0:00:28]}  d5 {[%clk 0:00:45]} 27. Bd3 {[%clk 0:00:25]}  Qxa2 {[%clk 0:00:43]} 28. Bxb5 {[%clk 0:00:22]}  Rc2 {[%clk 0:00:43]} 29. Nd4 {[%clk 0:00:22]}  Rd2 {[%clk 0:00:36]} 30. Nf3 {[%clk 0:00:18]}  Rb2 {[%clk 0:00:32]} 31. Bf1 {[%clk 0:00:13]}  Qa7+ {[%clk 0:00:27]} 32. Kh1 {[%clk 0:00:12]}  Qf2 {[%clk 0:00:27]} 33. Rd1 {[%clk 0:00:06]}  Rc8 {[%clk 0:00:25]} 34. Qh6 {[%clk 0:00:04]}  Rc7 {[%clk 0:00:06]} 35. Ng5 {[%clk 0:00:04]}  Qxf4 {[%clk 0:00:06]} 36. Qxh7+ {[%clk 0:00:04]}  Kf8 {[%clk 0:00:06]} 0-1


[Site "https://www.chess.com"]

[Event "Titled Tuesday Blitz April 26 Early 2022"]
[White "Polster, Christian"]
[Black "D`Arruda, Ricardo D."]
[WhiteFideId "12965081"]
[BlackFideId "100692"]
[WhiteElo "2317"]
[BlackElo "2407"]
[Result "0-1"]
[Round "04"]
[TimeControl "180+1"]
[Date "2022.04.26"]
[WhiteClock "0:00:01"]
[BlackClock "0:00:49"]

1. e4 {[%clk 0:03:00]}  c5 {[%clk 0:02:56]} 2. Nc3 {[%clk 0:02:56]}  e6 {[%clk 0:02:55]} 3. Nge2 {[%clk 0:02:54]}  Nf6 {[%clk 0:02:53]} 4. g3 {[%clk 0:02:54]}  d6 {[%clk 0:02:51]} 5. Bg2 {[%clk 0:02:54]}  Be7 {[%clk 0:02:51]} 6. O-O {[%clk 0:02:53]}  O-O {[%clk 0:02:52]} 7. d4 {[%clk 0:02:53]}  cxd4 {[%clk 0:02:51]} 8. Nxd4 {[%clk 0:02:54]}  Nc6 {[%clk 0:02:50]} 9. Re1 {[%clk 0:02:50]}  d5 {[%clk 0:02:38]} 10. exd5 {[%clk 0:02:42]}  exd5 {[%clk 0:02:38]} 11. h3 {[%clk 0:02:26]}  a6 {[%clk 0:02:25]} 12. Be3 {[%clk 0:01:58]}  Re8 {[%clk 0:02:19]} 13. Nb3 {[%clk 0:01:46]}  Be6 {[%clk 0:02:16]} 14. Qd2 {[%clk 0:01:45]}  Ne5 {[%clk 0:02:12]} 15. Rad1 {[%clk 0:01:37]}  Nc4 {[%clk 0:02:11]} 16. Qc1 {[%clk 0:01:38]}  Nxe3 {[%clk 0:02:10]} 17. Rxe3 {[%clk 0:01:38]}  Bb4 {[%clk 0:01:49]} 18. Nxd5 {[%clk 0:01:28]}  Nxd5 {[%clk 0:01:47]} 19. Bxd5 {[%clk 0:01:25]}  Bxd5 {[%clk 0:01:34]} 20. Rxe8+ {[%clk 0:01:24]}  Qxe8 {[%clk 0:01:35]} 21. Rxd5 {[%clk 0:01:24]}  Qe2 {[%clk 0:01:30]} 22. c3 {[%clk 0:01:18]}  Bf8 {[%clk 0:01:29]} 23. Qd2 {[%clk 0:01:14]}  Qe6 {[%clk 0:01:28]} 24. Kh2 {[%clk 0:01:12]}  Re8 {[%clk 0:01:27]} 25. Rd7 {[%clk 0:01:10]}  b6 {[%clk 0:01:20]} 26. Qd5 {[%clk 0:01:04]}  Qf6 {[%clk 0:01:18]} 27. Qd4 {[%clk 0:00:56]}  Qf5 {[%clk 0:01:13]} 28. Rd5 {[%clk 0:00:47]}  Qf3 {[%clk 0:01:13]} 29. Nd2 {[%clk 0:00:15]}  Qd1 {[%clk 0:01:12]} 30. Rd8 {[%clk 0:00:09]}  Rxd8 {[%clk 0:01:03]} 31. Qxd8 {[%clk 0:00:10]}  Qc2 {[%clk 0:01:03]} 32. Kg2 {[%clk 0:00:06]}  Qxb2 {[%clk 0:01:02]} 33. Ne4 {[%clk 0:00:06]}  Qxa2 {[%clk 0:01:01]} 34. Ng5 {[%clk 0:00:03]}  Qa5 {[%clk 0:00:53]} 35. h4 {[%clk 0:00:02]}  h6 {[%clk 0:00:52]} 36. Nf3 {[%clk 0:00:01]}  Qc5 {[%clk 0:00:49]} 0-1


[Site "https://www.chess.com"]